Cogmind - Beta 12 @@@ ROGUE MODE // 2023.09.18 @ 13:02:24 Player: DuckBoy Result: Destroyed by as-87058 with Assembled F-torch Performance ------------- Evolutions (0) 0 Regions Visited (2) 400 Robots Destroyed (18) 90 Value Destroyed (443) 443 Prototype IDs (0) 0 Alien Tech Used (0) 0 Bonus (0) 0 TOTAL SCORE: 933 Bonus ------- None Cogmind --------- Core Integrity 0/250 Matter 88/300 Energy 90/100 System Corruption 0% Temperature Hot (237) Movement Rolling (105) Ox1 Location -10/Mines Parts ------- > --- POWER (1) -------- (None) > --- PROPULSION (2) --- Armored Wheel Armored Wheel > --- UTILITY (2) ------ Large Storage Unit Structural Scanner > --- WEAPON (2) ------- Autogun Autogun > --- INVENTORY (15) --- Ion Engine Ion Engine Ion Engine Wheel Wheel Armored Wheel High-capacity Storage Unit Medium Laser Medium Laser Medium Laser Medium Laser Particle Gun Peak State ------------ > --- POWER ------------ Light Nuclear Core > --- PROPULSION ------- Armored Wheel Armored Wheel > --- UTILITY ---------- Large Storage Unit High-capacity Storage Unit > --- WEAPON ----------- Autogun Autogun > --- INVENTORY -------- Ion Engine Ion Engine Ion Engine Wheel Wheel Armored Wheel Armored Wheel Medium Laser Medium Laser Medium Laser Medium Laser Small Laser Particle Gun Autogun Autogun [Rating: 15] Favorites ----------- Power Light Nuclear Core Engine Ion Engine Power Core Light Nuclear Core Propulsion Light Treads Treads Light Treads Wheel Armored Wheel Utility Small Storage Unit Device Structural Scanner Storage Small Storage Unit Weapon Autogun Energy Gun EM Pulse Gun Ballistic Gun Autogun Build | -11 -10 -10 ------- Run | Jun Mat Min Slots Evolved . | . . . Power . | . . . Propulsion . | . . . Utility . | . . . Weapon . | . . . Parts Attached 22 | 6 12 4 Power 3 | 1 2 . Engine 2 | 1 1 . Core 1 | . 1 . Reactor . | . . . Propulsion 5 | 2 2 1 Treads 2 | 2 . . Leg . | . . . Wheel 3 | . 2 1 Hover . | . . . Flight . | . . . Utility 5 | 1 3 1 Device 1 | . 1 . Storage 4 | 1 2 1 Processor . | . . . Hackware . | . . . Protection . | . . . Artifact . | . . . Weapon 9 | 2 5 2 Energy Gun 3 | 2 1 . Energy Cannon . | . . . Ballistic Gun 6 | . 4 2 Ballistic Cannon . | . . . Launcher . | . . . Special Weapon . | . . . Impact Weapon . | . . . Slashing Weapon . | . . . Piercing Weapon . | . . . Special Melee Weapon . | . . . Unidentified Prototypes . | . . . Parts Lost 5 | . 3 2 Power . | . . . Propulsion 1 | . . 1 Utility . | . . . Weapon 4 | . 3 1 Highest Loss Streak 2 | . 1 2 To Critical Strikes . | . . . Average Slot Usage (%) 87 | . 87 86 Engine 4 | . 4 . Core 8 | . 9 6 Treads 13 | . 14 . Wheel 14 | . 13 28 Device 3 | . 2 14 Storage 14 | . 14 14 Energy Gun 8 | . 8 6 Ballistic Gun 18 | . 18 16 Naked Turns . | . . . Heaviest Build 51 | 14 51 50 Greatest Support 40 | 40 40 24 Greatest Overweight (x) 2 | 1 2 2 Average Overweight (x) . | . . . Largest Inventory Capacity 20 | 8 20 20 Average Capacity 12 | 7 12 16 Most Carried 17 | 4 17 17 Average Carried 9 | 2 9 15 Final Capacity 20 | 8 20 15 Final Carried 17 | 4 17 12 Class Distribution -------------------- 100% | Mutant Dominant Class ---------------- Mutant | -10/Materials Mutant | -10/Mines Resources | -11 -10 -10 ----------- Run | Jun Mat Min Matter Collected 448 | 174 274 . Remotely . | . . . Salvage Created 631 | . 596 35 Parts 46 | . 46 . Haulers Intercepted 1 | . 1 . Recyclers Shooed . | . . . Parts Field Recycled . | . . . Retrieved Matter . | . . . Parts Self-Destructed . | . . . Prevented . | . . . Kills | -11 -10 -10 ------- Run | Jun Mat Min Combat Hostiles Destroyed 14 | . 12 2 Guns 14 | . 12 2 Classes Destroyed 7 | . 6 1 Builder 1 | . 1 . Hauler 1 | . 1 . Operator 1 | . 1 . Watcher 3 | . 3 . Swarmer 3 | . 3 . Grunt 9 | . 9 . Assembled 2 | . . 2 Best Kill Streak 3 | . 3 2 Combat Bots Only 2 | . 2 2 Max Kills in Single Turn 1 | . 1 1 Gunslinging . | . . . Exploded . | . . . Melee . | . . . Uniques/NPCs Destroyed . | . . . Combat | -11 -10 -10 -------- Run | Jun Mat Min Damage Taken 1222 | . 888 334 Core 257 | . 156 101 Absorbed by Shields . | . . . Core Remaining (%) 100 | 100 . . Volleys Fired 82 | . 73 9 Largest 2 | . 2 2 Hottest 80 | . 80 46 Shots Fired 156 | . 139 17 Gun 156 | . 139 17 Cannon . | . . . Launcher . | . . . Special . | . . . Kinetic 98 | . 81 17 Thermal 19 | . 19 . Explosive . | . . . Electromagnetic 39 | . 39 . Robot Hit Streak 12 | . 12 5 Robot Miss Streak 6 | . 6 2 Penetration Max . | . . . Secondary Targets 4 | . 3 1 Max Gunslinging Chain 1 | . 1 1 Shots Hit Robots 94 | . 84 10 Core Hits 39 | 1 33 5 Critical Kills 2 | . 2 . Critical Parts Destroyed . | . . . Critical Strikes 2 | . 2 . Destroy 2 | . 2 . Melee Attacks . | . . . Impact . | . . . Slashing . | . . . Piercing . | . . . Sneak Attacks . | . . . Combat Hostiles . | . . . Follow-up Attacks . | . . . Damage Inflicted 1310 | 6 1156 148 Guns 1212 | . 1064 148 Cannons . | . . . Explosions 86 | . 86 . Melee . | . . . Ramming 12 | 6 6 . Kinetic 794 | . 646 148 Thermal 207 | . 207 . Explosive . | . . . Electromagnetic 297 | . 297 . Impact . | . . . Slashing . | . . . Piercing . | . . . Highest Corruption . | . . . Average Corruption . | . . . Corruption Purged . | . . . Corruption Blocked . | . . . Overload Shots . | . . . Overflow Damage . | . . . Projectiles . | . . . Explosions . | . . . Melee . | . . . Knockbacks . | . . . Impact . | . . . Kinetic . | . . . Secondary . | . . . Self-Inflicted Damage 28 | . 28 . Shots 1 | . 1 . Rammed 4 | 3 1 . Targets Rammed 4 | 3 1 . Kicked . | . . . Crushed . | . . . Highest Temperature 244 | . 236 244 Average Temperature 72 | . 65 144 Received Heat Transfer 939 | . 399 540 Siege Activations . | . . . Robots Corrupted . | . . . Combat Hostiles . | . . . Parts Fried . | . . . Impact Corruptions . | . . . Robots Melted . | . . . Combat Hostiles . | . . . Parts Melted 1 | . 1 . Heat Transferred 425 | . 425 . Parts Sabotaged . | . . . Parts Stolen . | . . . Parts Stripped . | . . . Power Chain Reactions 2 | . 2 . Missiles Intercepted . | . . . Alert | -11 -10 -10 ------- Run | Jun Mat Min Peak Influence 254 | . 254 48 Initial 33 | . . 33 Average 53 | . 60 40 Maximum Alert Level 1 | . 1 . Low Security (%) 95 | 100 94 100 Level 1 4 | . 5 . Level 2 . | . . . Level 3 . | . . . Level 4 . | . . . Level 5 . | . . . High Security . | . . . Max Security . | . . . Squads Dispatched 2 | . 2 . Investigation 1 | . 1 . Extermination . | . . . Reinforcement 1 | . 1 . Assault . | . . . Garrison . | . . . Intercept . | . . . Searches Triggered . | . . . Construction Impeded . | . . . Haulers Reinforced . | . . . Active Scanning Responses . | . . . Cargo Convoy Interrupts . | . . . Stealth | -11 -10 -10 --------- Run | Jun Mat Min Distress Signals 2 | . 2 . Communications Jammed . | . . . Distress Signals . | . . . Times Spotted 26 | . 19 7 Peak Tracking Total 5 | . 5 4 Tactical Retreats 3 | . 2 1 Traps | -11 -10 -10 ------- Run | Jun Mat Min Traps Triggered 2 | . 2 . Indirectly . | . . . Trap Hack Attempts . | . . . Triggered . | . . . Disarmed . | . . . Reprogrammed . | . . . Reused . | . . . Traps Extracted . | . . . Installed . | . . . Triggered . | . . . Machines | -11 -10 -10 ---------- Run | Jun Mat Min Machines Disabled 1 | . 1 . Max in Single Turn 1 | . 1 . Machines Repaired . | . . . Machines Sabotaged . | . . . Overloaded Fab Kills . | . . . Hacking | -11 -10 -10 --------- Run | Jun Mat Min Machines Accessed 6 | . 6 . Terminals 5 | . 5 . Fabricators . | . . . Repair Stations . | . . . Recycling Units 1 | . 1 . Scanalyzers . | . . . Garrison Access . | . . . Total Hacks 25 | . 25 . Successful 12 | . 12 . Failed 12 | . 12 . Catastrophic 3 | . 3 . Database Lockouts 1 | . 1 . Manual 19 | . 19 . Terminals 20 | . 20 . Fabricators . | . . . Repair Stations . | . . . Recycling Units 5 | . 5 . Scanalyzers . | . . . Garrison Access . | . . . Terminal Hacks 6 | . 6 . Part Schematic 1 | . 1 . Robot Schematic 2 | . 2 . Unreport Threat 2 | . 2 . Locate Traps 1 | . 1 . Fabricator Hacks . | . . . Repair Station Hacks . | . . . Recycling Unit Hacks 2 | . 2 . Recycle Component 1 | . 1 . Retrieve Components 1 | . 1 . Scanalyzer . | . . . Garrison Access Hacks . | . . . Unauthorized Hacks 4 | . 4 . Terminals 4 | . 4 . Botnet 3 | . 3 . Disrupt 1 | . 1 . Fabricators . | . . . Repair Stations . | . . . Recycling Units . | . . . Scanalyzers . | . . . Garrison Access . | . . . Data Cores Recovered . | . . . Used . | . . . Hacking Detections 5 | . 5 . Full Trace Events . | . . . Feedback Events . | . . . Feedback Blocked . | . . . Robot Schematics Acquired 2 | . 2 . Robots Built . | . . . Authchips . | . . . Time . | . . . Total Robot Build Rating . | . . . Part Schematics Acquired 1 | . 1 . Parts Built . | . . . Authchips . | . . . Time . | . . . Total Part Build Rating . | . . . Parts Repaired . | . . . Time . | . . . Parts Recycled 1 | . 1 . Recycled Matter . | . . . Retrieved Matter . | . . . Retrieved Components . | . . . Parts Scanalyzed . | . . . Part Schematics Acquired . | . . . Parts Damaged . | . . . Bothacking | -11 -10 -10 ------------ Run | Jun Mat Min Used RIF Installer . | . . . Robots Hacked . | . . . Non-combat . | . . . Combat . | . . . Robot Hacks Applied . | . . . Relay Couplers Released . | . . . Fabnet Peak Effective % . | . . . Robots Rewired . | . . . Allies Hacked . | . . . Hacks Repelled . | . . . Allies | -11 -10 -10 -------- Run | Jun Mat Min Total Allies . | . . . Largest Group . | . . . Highest-Rated Group . | . . . Highest-Rated Ally . | . . . Total Orders . | . . . Ally Attacks . | . . . Total Damage . | . . . Kills . | . . . Allies Corrupted . | . . . Allies Melted . | . . . Intel | -11 -10 -10 ------- Run | Jun Mat Min Robot Analysis Total . | . . . Derelict Logs Recovered 1 | . . 1 Drone Launches . | . . . Drone Recoveries . | . . . Exploration | -11 -10 -10 ------------- Run | Jun Mat Min Turns Passed 1225 | 99 997 129 Spaces Moved 716 | 55 564 97 Core 7 | 7 . . Treads 299 | 48 251 . Legs . | . . . Wheels 410 | . 313 97 Hover . | . . . Flight . | . . . Fastest Speed 50 | 50 105 90 Average Speed 129 | 149 132 103 Slowest Speed 160 | 160 160 120 Overloaded Moves . | . . . Propulsion Burnouts . | . . . Robots Hopped . | . . . Cave-ins Triggered . | . . . Exploration Rate (%) 36 | 4 84 21 Regions Visited 2 Branch Regions 1 Pre-discovered Areas . | . . . Known Exits Taken . | . . . Unknown Exits Taken 2 | 1 1 . Scrap Searched . | . . . Spaces Dug . | . . . Terrain Destroyed 5 | . 5 . Melee . | . . . Projectile . | . . . AOE 5 | . 5 . Terrain Rammed . | . . . Walls Destroyed . | . . . Machines Disabled . | . . . Actions | -11 -10 -10 --------- Run | Jun Mat Min Total 870 | 67 689 114 Wait 17 | . 17 . Move 715 | 55 563 97 Hop . | . . . Pick Up 20 | 4 15 1 Fast Attach 12 | 6 6 . Attach 5 | . 2 3 Detach 1 | . 1 . Swap 5 | . 4 1 Drop 10 | . 7 3 Fire 82 | . 73 9 Melee . | . . . Ram . | . . . Kick . | . . . Crush 3 | 2 1 . Escape Stasis . | . . . Rewire . | . . . Trap . | . . . Miscellaneous . | . . . Route ------- -11/Junkyard -10/Materials (discovered 4 exits: [*Mat x3] / [*Min]) -10/Mines History --------- Turn | Location | Event 6 | -11/Junkyard | Discovered new exit (range 16) 100 | -11/Junkyard | Entered Materials 290 | -10/Materials | Discovered new exit (range 10) 318 | -10/Materials | Build established: Mutant 351 | -10/Materials | Discovered new exit (range 12) 491 | -10/Materials | Central database locked down 572 | -10/Materials | Discovered new exit (range 15) 825 | -10/Materials | Discovered new exit (range 15) 913 | -10/Materials | Core integrity fell below 50% 1097 | -10/Materials | Entered Mines 1133 | -10/Mines | Assembled infested the area 1190 | -10/Mines | Core integrity fell below 20% 1226 | -10/Mines | Destroyed by as-87058 with Assembled F-torch Last Messages --------------- LOCATION=UNKNOWN GOAL=ESCAPE 01108_ Acquired derelict log, extracted data. Data stored: Storage entrances (x1). 01133_ ALERT: Infestation in the mines, dispatching Demolisher response squad. 01149_ Dropped Lgt. Treads. 01150_ Acquired Arm. Wheel. 01152_ Dropped Sml. Laser. 01152_ Dropped Lgt. Nuclear Core. 01170_ T-07 Excavator destroyed. 01208_ Critical hit (Burn: +80). 01210_ as-61558 destroyed. 01210_ Switching to secondary target: as-37886. 01212_ Destroyed Asb. F-torch. 01212_ as-37886 destroyed. 01217_ Autogun destroyed. 01217_ Arm. Wheel destroyed. 01223_ Critical hit (Burn: +80). 01225_ Destroyed Asb. F-torch. Map ----- +----------------------------------------------------+ | | | | | | | | | | | | | | | | | | | | | | | | | | | | | | | ???????????????????????????????????????????? | | ???????????????????????????????????????????? | | ???????????????????????????????????????????? | | ???????????????????????????????????????????? | | ???????????????????????????????????????????? | | ??????????######????#####??????????????????? | | ?????????########??#######?????????????????? | | ?????????### ####### ####????????????????? | | ?????????## ##### ###????????????????? | | ?####????## ### ##????????????????? | | ?### ????## @ ##????????????????? | | ?## ???### ###????????????????? | | ?## ??### a% #####????????????????? | | ?## #### ## #####?????????????????? | | ?## ## ####a%## ???????????????????? | | ?## #### # ???????????????????? | | ?## ## # ???????????????????? | | ?### =! # ???????????????????? | | ?####### ##%| ## ???????????????????? | | ??########### ## ????????????????? | | ??????######## ### ##????????????????? | | ???????????### ## ##????????????????? | | ??????????#### ##????????????????? | | ??????????### ## ##????????????????? | | ??????????## ### ????????????????? | | ??????????## ###???????????????????? | | ??????????### ###????????????????????? | | ??????????##### ### ###????????????????????? | | ???????????#### ### ##?????????????????????? | | ?????????????## ### #####??????????????????? | | ?????????????## #####??????????????????? | | ?????????????## ##### ??????????????????? | | ??????######### ##### ##???????????????????? | | ???############ ##### ##???????????????????? | | ??###### ##???????????????????? | +----------------------------------------------------+ Best States ------------- Heat Dissipation 25 Energy Generation 14 Energy Capacity 250 Matter Stores 300 Matter Capacity 300 Sight Range 16 Terrain Scan Density 10 Evasion (%) 42 Recoil Reduction 2 Item Schematics ----------------- Hcp. Storage Unit | -10/Materials | Hacked Robot Schematics ------------------ M-13 Machinist | -10/Materials | Hacked O-16 Technician | -10/Materials | Hacked Fabricated ------------ Nothing Alien Tech Used ----------------- None Achievements -------------- None Challenges ------------ None Game ------ Seed MobileAssaultGun Manual? 0 Play Time 00:13:47 Cumulative 325.1 hours Start 2023.09.18 @ 12:49:59 End 2023.09.18 @ 13:02:24 Sessions 1 Manual Loads 0 Difficulty Rogue Special Mode None Game No. 210 Rogue 207 Adventurer 3 Explorer 0 Win Type - Total 6 Types 5/0/1/0/0/0/0/0/0 Lore% 72 Gallery% 76 Achievement% 64 Wizard Run 0 Options --------- ASCII 0 Keyboard 0 Movement Numpad Keybinds 0 Fullscreen 1 Font 18/SmallcapsGlow Map View 76x50 Tactical HUD 1 Map Filters NONE Filters NONE Steam 1 RUN: 5ca022dc-f3d6-4e3c-a0c5-fc4e9c033ce7